[Event "*** Titled Tuesday 3|2 Blitz"]
[Site "Chess.com"]
[Date "2016.06.07"]
[Round "6"]
[White "AlexanderL"]
[Black "AleksandrKholin"]
[Result "1-0"]
[WhiteElo "2572"]
[BlackElo "2120"]
[TimeControl "180+2"]
[EndTime "18:06:27 PDT"]
[Termination "AlexanderL won by resignation"]

1. Nf3 {[%clk 0:01:57.2]} 1... Nf6 {[%clk 0:02:59.2]} 2. g3 {[%clk 0:01:53.7]}
2... b6 {[%clk 0:02:59.2]} 3. Bg2 {[%clk 0:01:54.3]} 3... Bb7 {[%clk 0:03:00.8]}
4. O-O {[%clk 0:01:55.4]} 4... e6 {[%clk 0:03:01.2]} 5. c4 {[%clk 0:01:56.2]}
5... c5 {[%clk 0:03:01.9]} 6. Nc3 {[%clk 0:01:56.1]} 6... Be7 {[%clk 0:03:02.2]}
7. Re1 {[%clk 0:01:55.6]} 7... d6 {[%clk 0:03:01.7]} 8. e4 {[%clk 0:01:54.7]}
8... O-O {[%clk 0:03:01.1]} 9. d4 {[%clk 0:01:55.5]} 9... cxd4 {[%clk
0:03:01.7]} 10. Nxd4 {[%clk 0:01:57.4]} 10... Nc6 {[%clk 0:03:02.8]} 11. b3
{[%clk 0:01:48.8]} 11... a6 {[%clk 0:02:57.5]} 12. Bb2 {[%clk 0:01:49.2]} 12...
Qc7 {[%clk 0:02:58.2]} 13. Rc1 {[%clk 0:01:49.3]} 13... Rfd8 {[%clk 0:02:55.3]}
14. Nd5 {[%clk 0:01:49]} 14... Qb8 {[%clk 0:02:10.1]} 15. Nxc6 {[%clk
0:01:49.1]} 1-0

[Event "*** Titled Tuesday 3|2 Blitz"]
[Site "Chess.com"]
[Date "2016.06.07"]
[Round "6"]
[White "Fandorine"]
[Black "yopino"]
[Result "1-0"]
[WhiteElo "2612"]
[BlackElo "2262"]
[TimeControl "180+2"]
[EndTime "18:06:46 PDT"]
[Termination "Fandorine won by resignation"]

1. e4 {[%clk 0:03:01.9]} 1... c5 {[%clk 0:03:00.3]} 2. Nf3 {[%clk 0:03:03]} 2...
g6 {[%clk 0:02:59.8]} 3. c3 {[%clk 0:02:58.1]} 3... Bg7 {[%clk 0:02:58.3]} 4. d4
{[%clk 0:02:58.8]} 4... cxd4 {[%clk 0:02:58.7]} 5. cxd4 {[%clk 0:02:59.9]} 5...
d5 {[%clk 0:02:59.3]} 6. e5 {[%clk 0:02:58.9]} 6... Nh6 {[%clk 0:02:55.6]} 7. h3
{[%clk 0:02:57.6]} 7... O-O {[%clk 0:02:52]} 8. Bd3 {[%clk 0:02:54.1]} 8... Nc6
{[%clk 0:02:48.9]} 9. Nc3 {[%clk 0:02:49.5]} 9... Nf5 {[%clk 0:02:45.7]} 10. Bc2
{[%clk 0:02:50.5]} 10... Qb6 {[%clk 0:02:40.5]} 11. Nxd5 {[%clk 0:02:46.1]}
11... Qa5+ {[%clk 0:02:41]} 12. Nc3 {[%clk 0:02:47.7]} 12... Nfxd4 {[%clk
0:02:37.8]} 13. Nxd4 {[%clk 0:02:45.5]} 13... Rd8 {[%clk 0:02:38.9]} 14. O-O
{[%clk 0:02:31.4]} 14... Bxe5 {[%clk 0:02:39.1]} 15. Nxc6 {[%clk 0:02:26.5]} 1-0

[Event "*** Titled Tuesday 3|2 Blitz"]
[Site "Chess.com"]
[Date "2016.06.07"]
[Round "6"]
[White "Quiet_Desperation"]
[Black "Generalas"]
[Result "0-1"]
[WhiteElo "2294"]
[BlackElo "2229"]
[TimeControl "180+2"]
[EndTime "18:07:49 PDT"]
[Termination "Generalas won by resignation"]

1. e4 {[%clk 0:02:18.5]} 1... e5 {[%clk 0:03:00]} 2. Nf3 {[%clk 0:02:18.3]} 2...
Nc6 {[%clk 0:03:00.9]} 3. Bb5 {[%clk 0:02:19.4]} 3... a6 {[%clk 0:03:01.8]} 4.
Ba4 {[%clk 0:02:19.9]} 4... Nf6 {[%clk 0:03:02.7]} 5. d3 {[%clk 0:02:21.3]} 5...
b5 {[%clk 0:03:02.4]} 6. Bb3 {[%clk 0:02:22]} 6... Be7 {[%clk 0:03:04.1]} 7. c3
{[%clk 0:02:23.4]} 7... O-O {[%clk 0:03:04.3]} 8. O-O {[%clk 0:02:21]} 8... d6
{[%clk 0:03:00.6]} 9. h3 {[%clk 0:02:21.3]} 9... Na5 {[%clk 0:02:59.6]} 10. Bc2
{[%clk 0:02:22.2]} 10... c5 {[%clk 0:03:01.3]} 11. Qe2 {[%clk 0:02:23.2]} 11...
Qc7 {[%clk 0:03:01.4]} 12. Rd1 {[%clk 0:02:24.4]} 12... Re8 {[%clk 0:02:59.9]}
13. Nbd2 {[%clk 0:02:25.6]} 13... g6 {[%clk 0:03:00.8]} 14. Nf1 {[%clk
0:02:26.8]} 14... Bf8 {[%clk 0:03:02]} 15. Bg5 {[%clk 0:02:28]} 15... Bg7 {[%clk
0:03:03]} 16. Ng3 {[%clk 0:02:29.3]} 16... h6 {[%clk 0:03:02]} 17. Be3 {[%clk
0:02:29.3]} 17... Kh7 {[%clk 0:03:01.8]} 18. a4 {[%clk 0:02:29.1]} 18... Bd7
{[%clk 0:03:02]} 19. axb5 {[%clk 0:02:29.5]} 19... axb5 {[%clk 0:03:02.8]} 20.
Nh2 {[%clk 0:02:28]} 20... Nc6 {[%clk 0:02:50.6]} 21. Rf1 {[%clk 0:02:28.3]}
21... Qb7 {[%clk 0:02:46.1]} 22. f4 {[%clk 0:02:28.3]} 22... Rxa1 {[%clk
0:02:42.8]} 23. Rxa1 {[%clk 0:02:28.8]} 23... Ra8 {[%clk 0:02:40.8]} 24. Rf1
{[%clk 0:02:28.9]} 24... Ra2 {[%clk 0:02:40]} 25. Bb3 {[%clk 0:02:29.5]} 25...
Ra6 {[%clk 0:02:35.6]} 26. Bxf7 {[%clk 0:02:30.5]} 26... Bc8 {[%clk 0:02:27.3]}
27. Bb3 {[%clk 0:02:27.9]} 27... Na5 {[%clk 0:02:18.2]} 28. Bc2 {[%clk
0:02:26.7]} 28... c4 {[%clk 0:02:18.9]} 29. d4 {[%clk 0:02:27.1]} 29... Nd7
{[%clk 0:02:12.5]} 30. f5 {[%clk 0:02:26.9]} 30... g5 {[%clk 0:02:11.2]} 31. Qh5
{[%clk 0:02:22]} 31... Nf6 {[%clk 0:02:07.6]} 32. Qg6+ {[%clk 0:02:21.1]} 32...
Kg8 {[%clk 0:02:06.3]} 33. Ng4 {[%clk 0:02:22.5]} 33... Nxg4 {[%clk 0:01:56.5]}
34. hxg4 {[%clk 0:02:23.3]} 34... Qf7 {[%clk 0:01:50]} 35. Qxd6 {[%clk
0:02:19.1]} 35... Rxd6 {[%clk 0:01:49.9]} 0-1

[Event "*** Titled Tuesday 3|2 Blitz"]
[Site "Chess.com"]
[Date "2016.06.07"]
[Round "6"]
[White "Viaje"]
[Black "silverback96"]
[Result "1-0"]
[WhiteElo "2141"]
[BlackElo "2029"]
[TimeControl "180+2"]
[EndTime "18:08:02 PDT"]
[Termination "Viaje won by resignation"]

1. d4 {[%clk 0:00:50.1]} 1... c5 {[%clk 0:03:01.9]} 2. d5 {[%clk 0:00:50.8]}
2... g6 {[%clk 0:02:44]} 3. Nc3 {[%clk 0:00:52.1]} 3... Bg7 {[%clk 0:02:44.9]}
4. e4 {[%clk 0:00:53.8]} 4... d6 {[%clk 0:02:45.8]} 5. h4 {[%clk 0:00:54.9]}
5... Nf6 {[%clk 0:02:46.2]} 6. h5 {[%clk 0:00:56.1]} 6... Nxh5 {[%clk
0:02:47.2]} 7. Rxh5 {[%clk 0:00:57]} 7... gxh5 {[%clk 0:02:49.1]} 8. Qxh5 {[%clk
0:00:57.8]} 8... Qa5 {[%clk 0:02:47.2]} 9. Bd2 {[%clk 0:00:57.7]} 9... Qb4
{[%clk 0:02:48.4]} 10. O-O-O {[%clk 0:00:56]} 10... Qa5 {[%clk 0:02:40.3]} 11.
Kb1 {[%clk 0:00:55.4]} 11... Na6 {[%clk 0:02:40.3]} 12. Nf3 {[%clk 0:00:54.3]}
12... Nb4 {[%clk 0:02:40.2]} 13. a3 {[%clk 0:00:53.3]} 13... Bd7 {[%clk
0:02:41.3]} 14. axb4 {[%clk 0:00:49.6]} 14... cxb4 {[%clk 0:02:43.2]} 15. Na2
{[%clk 0:00:50.3]} 15... Rc8 {[%clk 0:02:37.4]} 16. Ng5 {[%clk 0:00:49.3]} 16...
Rxc2 {[%clk 0:02:22.8]} 17. Qxf7+ {[%clk 0:00:45.5]} 17... Kd8 {[%clk 0:02:23]}
18. Qxg7 {[%clk 0:00:46.4]} 18... Rxd2 {[%clk 0:02:24.2]} 19. Qxh8+ {[%clk
0:00:45.7]} 19... Be8 {[%clk 0:02:25.2]} 20. Rxd2 {[%clk 0:00:44.6]} 20... b3
{[%clk 0:02:25.9]} 21. Nc3 {[%clk 0:00:43.9]} 21... Qb4 {[%clk 0:02:14.8]} 22.
Ne6+ {[%clk 0:00:42.9]} 22... Kd7 {[%clk 0:02:14.6]} 23. Bb5+ {[%clk 0:00:43.4]}
1-0

[Event "*** Titled Tuesday 3|2 Blitz"]
[Site "Chess.com"]
[Date "2016.06.07"]
[Round "6"]
[White "Mornar1951"]
[Black "Danirod"]
[Result "1-0"]
[WhiteElo "2508"]
[BlackElo "2428"]
[TimeControl "180+2"]
[EndTime "18:09:00 PDT"]
[Termination "Mornar1951 won by resignation"]

1. Nf3 {[%clk 0:03:01.9]} 1... d5 {[%clk 0:03:00.6]} 2. d4 {[%clk 0:03:02.2]}
2... c5 {[%clk 0:03:01.8]} 3. c4 {[%clk 0:03:03]} 3... cxd4 {[%clk 0:03:01.7]}
4. cxd5 {[%clk 0:03:02]} 4... Nf6 {[%clk 0:02:59.7]} 5. Qxd4 {[%clk 0:02:51]}
5... Qxd5 {[%clk 0:03:00.6]} 6. Nc3 {[%clk 0:02:51.5]} 6... Qxd4 {[%clk
0:03:01.5]} 7. Nxd4 {[%clk 0:02:52.7]} 7... a6 {[%clk 0:03:02.7]} 8. e4 {[%clk
0:02:38.2]} 8... e5 {[%clk 0:02:37.6]} 9. Nf3 {[%clk 0:02:35.6]} 9... Nc6 {[%clk
0:02:37.5]} 10. Bc4 {[%clk 0:02:30.5]} 10... Bb4 {[%clk 0:02:38.1]} 11. O-O
{[%clk 0:02:30.2]} 11... Bg4 {[%clk 0:02:03.4]} 12. Nd5 {[%clk 0:02:12.4]} 12...
Nxd5 {[%clk 0:02:04]} 13. Bxd5 {[%clk 0:02:12.2]} 13... f6 {[%clk 0:01:48.6]}
14. Be3 {[%clk 0:02:09.6]} 14... Ke7 {[%clk 0:01:39.4]} 15. Rfc1 {[%clk
0:02:07.9]} 15... Rac8 {[%clk 0:01:38.2]} 16. Ne1 {[%clk 0:01:55.7]} 16... Bxe1
{[%clk 0:01:26.3]} 17. Rxe1 {[%clk 0:01:52.4]} 17... Be6 {[%clk 0:01:26.5]} 18.
Bc5+ {[%clk 0:01:43.9]} 18... Kf7 {[%clk 0:01:27.4]} 19. Red1 {[%clk 0:01:35.3]}
19... Rhd8 {[%clk 0:01:27.8]} 20. Bb6 {[%clk 0:01:34.2]} 20... Rd7 {[%clk
0:01:23.7]} 21. Bb3 {[%clk 0:01:09.1]} 21... Bxb3 {[%clk 0:01:13]} 22. Rxd7+
{[%clk 0:01:08.6]} 22... Ke6 {[%clk 0:01:12.2]} 23. Rxg7 {[%clk 0:01:07.5]}
23... Bc2 {[%clk 0:01:12.4]} 24. f3 {[%clk 0:01:05.4]} 24... Nd4 {[%clk
0:01:13.7]} 25. Rxb7 {[%clk 0:01:01.2]} 25... Bd3 {[%clk 0:01:14.1]} 26. Rc7
{[%clk 0:01:01.2]} 26... Rb8 {[%clk 0:01:14.9]} 27. Bxd4 {[%clk 0:01:01.7]}
27... exd4 {[%clk 0:01:16.5]} 28. Rd1 {[%clk 0:01:02.7]} 1-0

[Event "*** Titled Tuesday 3|2 Blitz"]
[Site "Chess.com"]
[Date "2016.06.07"]
[Round "6"]
[White "Kawhi_Leonard2"]
[Black "Fawolizzo"]
[Result "1-0"]
[WhiteElo "2045"]
[BlackElo "1987"]
[TimeControl "180+2"]
[EndTime "18:09:40 PDT"]
[Termination "Kawhi_Leonard2 won by checkmate"]

1. e4 {[%clk 0:03:01.9]} 1... e5 {[%clk 0:02:55.3]} 2. Nf3 {[%clk 0:03:02.5]}
2... Nc6 {[%clk 0:02:56.2]} 3. Bb5 {[%clk 0:03:03.8]} 3... Nge7 {[%clk 0:02:57]}
4. d4 {[%clk 0:03:03.4]} 4... exd4 {[%clk 0:02:56.6]} 5. Nxd4 {[%clk 0:03:04.3]}
5... g6 {[%clk 0:02:56.7]} 6. Nc3 {[%clk 0:03:05.1]} 6... Bg7 {[%clk 0:02:56.9]}
7. Be3 {[%clk 0:03:06.6]} 7... O-O {[%clk 0:02:57.1]} 8. Qd2 {[%clk 0:03:08.2]}
8... a6 {[%clk 0:02:57.5]} 9. Be2 {[%clk 0:03:07.2]} 9... d6 {[%clk 0:02:57.7]}
10. O-O-O {[%clk 0:03:07]} 10... b5 {[%clk 0:02:55.5]} 11. h4 {[%clk 0:03:05.2]}
11... Bb7 {[%clk 0:02:47.7]} 12. h5 {[%clk 0:03:02.5]} 12... b4 {[%clk
0:02:46.9]} 13. Nd5 {[%clk 0:03:01.6]} 13... Nxd5 {[%clk 0:02:46]} 14. exd5
{[%clk 0:03:02.3]} 14... Ne5 {[%clk 0:02:34.7]} 15. Bh6 {[%clk 0:02:39.7]} 15...
Qf6 {[%clk 0:02:31.2]} 16. Bxg7 {[%clk 0:02:35.7]} 16... Qxg7 {[%clk 0:02:30.8]}
17. hxg6 {[%clk 0:02:36.3]} 17... hxg6 {[%clk 0:02:28.5]} 18. f4 {[%clk
0:02:17.2]} 18... Nd7 {[%clk 0:02:27]} 19. Nf3 {[%clk 0:02:09.8]} 19... Nf6
{[%clk 0:02:25.5]} 20. Bc4 {[%clk 0:01:58]} 20... Rfe8 {[%clk 0:02:23.5]} 21.
Ng5 {[%clk 0:01:56.1]} 21... a5 {[%clk 0:02:17.8]} 22. g4 {[%clk 0:01:31.5]}
22... Bc8 {[%clk 0:01:59.6]} 23. f5 {[%clk 0:01:22.7]} 23... gxf5 {[%clk
0:01:56.2]} 24. gxf5 {[%clk 0:01:22.8]} 24... Bxf5 {[%clk 0:01:55.7]} 25. Rdg1
{[%clk 0:01:23.2]} 25... Bg6 {[%clk 0:01:55.6]} 26. Ne6 {[%clk 0:00:57.6]} 26...
fxe6 {[%clk 0:01:49.3]} 27. Rh6 {[%clk 0:00:51.9]} 27... Ne4 {[%clk 0:01:37.5]}
28. Rhxg6 {[%clk 0:00:50.6]} 28... Nxd2 {[%clk 0:01:30.4]} 29. Rxg7+ {[%clk
0:00:51.4]} 29... Kf8 {[%clk 0:01:31.4]} 30. Kxd2 {[%clk 0:00:45.4]} 30... exd5
{[%clk 0:01:26]} 31. Bxd5 {[%clk 0:00:45.9]} 31... Rad8 {[%clk 0:01:16.5]} 32.
Rf7# {[%clk 0:00:46.4]} 1-0

[Event "*** Titled Tuesday 3|2 Blitz"]
[Site "Chess.com"]
[Date "2016.06.07"]
[Round "6"]
[White "Boryboy"]
[Black "Keaton87"]
[Result "1/2-1/2"]
[WhiteElo "2550"]
[BlackElo "2473"]
[TimeControl "180+2"]
[EndTime "18:10:25 PDT"]
[Termination "Game drawn by repetition"]

1. d4 {[%clk 0:03:01.9]} 1... d5 {[%clk 0:03:01.1]} 2. Nf3 {[%clk 0:03:02.6]}
2... e6 {[%clk 0:03:02.2]} 3. c4 {[%clk 0:03:03.9]} 3... Nf6 {[%clk 0:03:03]} 4.
g3 {[%clk 0:03:05.1]} 4... Be7 {[%clk 0:03:03.7]} 5. Bg2 {[%clk 0:03:06.6]} 5...
O-O {[%clk 0:03:04.9]} 6. O-O {[%clk 0:03:07.8]} 6... dxc4 {[%clk 0:03:06.3]} 7.
Ne5 {[%clk 0:03:09]} 7... Nc6 {[%clk 0:03:06.8]} 8. Bxc6 {[%clk 0:03:10.2]} 8...
bxc6 {[%clk 0:03:08.5]} 9. Nxc6 {[%clk 0:03:11.9]} 9... Qe8 {[%clk 0:03:10.1]}
10. Nxe7+ {[%clk 0:03:13.6]} 10... Qxe7 {[%clk 0:03:12]} 11. Qa4 {[%clk
0:03:15]} 11... c5 {[%clk 0:03:09.6]} 12. Qa3 {[%clk 0:03:16.3]} 12... Bb7
{[%clk 0:03:04.7]} 13. Qxc5 {[%clk 0:03:17]} 13... Qd7 {[%clk 0:03:02.6]} 14.
Nc3 {[%clk 0:03:14.1]} 14... Rac8 {[%clk 0:03:03.4]} 15. Qe5 {[%clk 0:03:15.1]}
15... Qc6 {[%clk 0:03:01]} 16. f3 {[%clk 0:03:14.8]} 16... Rfd8 {[%clk
0:03:00.8]} 17. Qf4 {[%clk 0:03:10]} 17... Nd5 {[%clk 0:02:59.1]} 18. Nxd5
{[%clk 0:03:09.8]} 18... Qxd5 {[%clk 0:02:56.9]} 19. Be3 {[%clk 0:03:10.5]}
19... c3 {[%clk 0:02:55.4]} 20. bxc3 {[%clk 0:03:11.5]} 20... Rxc3 {[%clk
0:02:56.9]} 21. Rfc1 {[%clk 0:02:56.5]} 21... Rdc8 {[%clk 0:02:24]} 22. a4
{[%clk 0:02:44.5]} 22... h6 {[%clk 0:02:23.4]} 23. Rxc3 {[%clk 0:02:40.6]} 23...
Rxc3 {[%clk 0:02:25.3]} 24. Rc1 {[%clk 0:02:40.6]} 24... Rxc1+ {[%clk
0:02:16.3]} 25. Bxc1 {[%clk 0:02:42.5]} 25... Ba6 {[%clk 0:02:16.1]} 26. Qb8+
{[%clk 0:02:29.3]} 26... Kh7 {[%clk 0:02:16.5]} 27. Qb1+ {[%clk 0:02:30.6]}
27... f5 {[%clk 0:02:10.1]} 28. Qb2 {[%clk 0:02:29.3]} 28... Qc4 {[%clk
0:02:08.6]} 29. Kf2 {[%clk 0:02:23.9]} 29... Qxa4 {[%clk 0:02:09.6]} 30. Bf4
{[%clk 0:02:24.1]} 30... Qc4 {[%clk 0:02:07.3]} 31. Be5 {[%clk 0:02:25]} 31...
Qd5 {[%clk 0:01:43]} 32. h4 {[%clk 0:02:22.3]} 32... h5 {[%clk 0:01:40.4]} 33.
Qd2 {[%clk 0:02:21]} 33... Qc4 {[%clk 0:01:38.5]} 34. Qb2 {[%clk 0:02:08.4]}
34... Bb5 {[%clk 0:01:35.6]} 35. d5 {[%clk 0:02:07.6]} 35... exd5 {[%clk
0:01:36.5]} 36. Bxg7 {[%clk 0:02:08.8]} 36... Qxe2+ {[%clk 0:01:37]} 37. Qxe2
{[%clk 0:02:08.2]} 37... Bxe2 {[%clk 0:01:38.9]} 38. Bd4 {[%clk 0:02:09.6]}
38... Bc4 {[%clk 0:01:23.9]} 39. Bxa7 {[%clk 0:02:10.5]} 39... Kg6 {[%clk
0:01:24.7]} 40. Ke3 {[%clk 0:02:12.1]} 40... Bb3 {[%clk 0:01:25.5]} 41. Kf4
{[%clk 0:02:13.1]} 41... Bc4 {[%clk 0:01:26.6]} 42. Bd4 {[%clk 0:02:14.4]} 42...
Bb3 {[%clk 0:01:27.9]} 43. Ke5 {[%clk 0:02:15.6]} 43... Bc4 {[%clk 0:01:28.9]}
44. Kd6 {[%clk 0:02:16.9]} 44... Bb3 {[%clk 0:01:29.7]} 45. Kc5 {[%clk 0:02:17]}
45... Bd1 {[%clk 0:01:28.9]} 46. f4 {[%clk 0:02:17.5]} 46... Bf3 {[%clk
0:01:30]} 47. Kd6 {[%clk 0:02:18.5]} 47... Be4 {[%clk 0:01:31.3]} 48. Ke6 {[%clk
0:02:19.6]} 48... Bf3 {[%clk 0:01:32.9]} 49. Ke5 {[%clk 0:02:20.7]} 49... Be4
{[%clk 0:01:34.5]} 50. Bc5 {[%clk 0:02:21]} 50... Bg2 {[%clk 0:01:35.8]} 51. Bd6
{[%clk 0:02:22.4]} 51... Be4 {[%clk 0:01:37.4]} 52. Bc5 {[%clk 0:02:23.8]} 52...
Bg2 {[%clk 0:01:38.4]} 53. Ke6 {[%clk 0:02:24.7]} 53... Bh1 {[%clk 0:01:39.3]}
54. Kd6 {[%clk 0:02:25.7]} 54... Bg2 {[%clk 0:01:40.6]} 55. Bd4 {[%clk
0:02:26.8]} 55... Bh1 {[%clk 0:01:42.1]} 56. Kc5 {[%clk 0:02:27.9]} 56... Bg2
{[%clk 0:01:43.3]} 57. Kb4 {[%clk 0:02:28.2]} 57... Kf7 {[%clk 0:01:43.5]} 58.
Kc3 {[%clk 0:02:29.2]} 58... Ke6 {[%clk 0:01:44.6]} 59. Kd3 {[%clk 0:02:30.5]}
59... Bf3 {[%clk 0:01:45.9]} 60. Ke3 {[%clk 0:02:31.8]} 60... Bg4 {[%clk
0:01:47.2]} 61. Kf2 {[%clk 0:02:33]} 61... Kd6 {[%clk 0:01:48.5]} 62. Ke3 {[%clk
0:02:32.9]} 62... Kc6 {[%clk 0:01:50]} 63. Kd3 {[%clk 0:02:34]} 63... Kb5 {[%clk
0:01:51.4]} 64. Kc3 {[%clk 0:02:35.4]} 64... Bf3 {[%clk 0:01:52]} 65. Bf6 {[%clk
0:02:35.8]} 65... Bg4 {[%clk 0:01:53.1]} 66. Be7 {[%clk 0:02:37.1]} 66... Kc6
{[%clk 0:01:51.1]} 67. Kd4 {[%clk 0:02:38.2]} 67... Bh3 {[%clk 0:01:52.2]} 68.
Ba3 {[%clk 0:02:38.4]} 68... Bg4 {[%clk 0:01:53.2]} 69. Ke5 {[%clk 0:02:39.8]}
69... Bh3 {[%clk 0:01:52.8]} 70. Bb4 {[%clk 0:02:38.3]} 70... Kb5 {[%clk
0:01:51.5]} 71. Bc3 {[%clk 0:02:30.9]} 71... Kc4 {[%clk 0:01:51.9]} 72. Bd4
{[%clk 0:02:32.4]} 72... Bg4 {[%clk 0:01:52.2]} 73. Bb6 {[%clk 0:02:33.2]} 73...
Bh3 {[%clk 0:01:52.3]} 74. Ba7 {[%clk 0:02:34.6]} 74... Bg4 {[%clk 0:01:53.4]}
75. Bb6 {[%clk 0:02:35.6]} 75... Bh3 {[%clk 0:01:54.4]} 76. Ba7 {[%clk
0:02:36.3]} 76... Bg4 {[%clk 0:01:54.3]} 77. Bb6 {[%clk 0:02:37.5]} 77... Bh3
{[%clk 0:01:55.3]} 78. Ba7 {[%clk 0:02:38.9]} 78... Bg4 {[%clk 0:01:56.2]} 79.
Bb6 {[%clk 0:02:40.3]} 79... Bh3 {[%clk 0:01:57.3]} 80. Ba7 {[%clk 0:02:41.6]}
80... Bg4 {[%clk 0:01:58.6]} 81. Bb6 {[%clk 0:02:42.9]} 1/2-1/2

[Event "*** Titled Tuesday 3|2 Blitz"]
[Site "Chess.com"]
[Date "2016.06.07"]
[Round "6"]
[White "1stSecond"]
[Black "Danhy"]
[Result "0-1"]
[WhiteElo "2592"]
[BlackElo "2496"]
[TimeControl "180+2"]
[EndTime "18:10:26 PDT"]
[Termination "Danhy won by checkmate"]

1. d4 {[%clk 0:03:01.9]} 1... Nf6 {[%clk 0:02:59.9]} 2. c4 {[%clk 0:03:03.2]}
2... g6 {[%clk 0:02:57.3]} 3. Nc3 {[%clk 0:03:01.3]} 3... d5 {[%clk 0:02:57.7]}
4. cxd5 {[%clk 0:03:01.1]} 4... Nxd5 {[%clk 0:02:57.9]} 5. f3 {[%clk 0:03:02.1]}
5... Bg7 {[%clk 0:02:53.3]} 6. e4 {[%clk 0:02:56.6]} 6... Nxc3 {[%clk
0:02:50.4]} 7. bxc3 {[%clk 0:02:57.4]} 7... c5 {[%clk 0:02:52.3]} 8. Bb5+ {[%clk
0:02:47.5]} 8... Nc6 {[%clk 0:02:50.5]} 9. d5 {[%clk 0:02:48.6]} 9... Bxc3+
{[%clk 0:02:49]} 10. Bd2 {[%clk 0:02:49.8]} 10... Qa5 {[%clk 0:02:48.7]} 11. Rb1
{[%clk 0:02:41.1]} 11... O-O {[%clk 0:02:35.5]} 12. dxc6 {[%clk 0:02:40.2]}
12... Rd8 {[%clk 0:02:33.4]} 13. Rb2 {[%clk 0:02:29.8]} 13... bxc6 {[%clk
0:02:30.4]} 14. Bc4 {[%clk 0:02:09.5]} 14... Ba6 {[%clk 0:02:03.8]} 15. Bxa6
{[%clk 0:02:09.8]} 15... Rxd2 {[%clk 0:02:02.3]} 16. Rxd2 {[%clk 0:02:10.8]}
16... Rd8 {[%clk 0:02:02.1]} 17. Ne2 {[%clk 0:01:31.3]} 17... Rxd2 {[%clk
0:02:00.1]} 18. Qb3 {[%clk 0:01:32.3]} 18... Bd4 {[%clk 0:01:50.3]} 19. Nxd4
{[%clk 0:00:32.2]} 19... Rxd4+ {[%clk 0:01:43.7]} 20. Kf2 {[%clk 0:00:32.8]}
20... Rb4 {[%clk 0:01:39.6]} 21. Qd3 {[%clk 0:00:31.4]} 21... Rb2+ {[%clk
0:01:38.1]} 22. Kg3 {[%clk 0:00:32.3]} 22... c4 {[%clk 0:01:25.8]} 23. Qe3
{[%clk 0:00:19]} 23... Qxa6 {[%clk 0:01:23.5]} 24. Rd1 {[%clk 0:00:20.6]} 24...
Qxa2 {[%clk 0:01:19.5]} 25. Rd8+ {[%clk 0:00:20.5]} 25... Kg7 {[%clk 0:01:19.2]}
26. Qd4+ {[%clk 0:00:21.1]} 26... f6 {[%clk 0:01:17.1]} 27. Qd7 {[%clk
0:00:22.6]} 27... Rxg2+ {[%clk 0:01:14]} 28. Kf4 {[%clk 0:00:24.3]} 28... g5+
{[%clk 0:01:05]} 29. Kf5 {[%clk 0:00:20.2]} 29... Qa5+ {[%clk 0:00:59.9]} 30.
Ke6 {[%clk 0:00:20.7]} 30... Qe5# {[%clk 0:00:57]} 0-1

[Event "*** Titled Tuesday 3|2 Blitz"]
[Site "Chess.com"]
[Date "2016.06.07"]
[Round "6"]
[White "Evgeny_Levin"]
[Black "Newlight1"]
[Result "1-0"]
[WhiteElo "2686"]
[BlackElo "2201"]
[TimeControl "180+2"]
[EndTime "18:10:29 PDT"]
[Termination "Evgeny_Levin won on time"]

1. d4 {[%clk 0:02:51.6]} 1... Nf6 {[%clk 0:03:00.2]} 2. c4 {[%clk 0:02:50.9]}
2... c5 {[%clk 0:03:01.1]} 3. d5 {[%clk 0:02:48.4]} 3... e6 {[%clk 0:03:02.5]}
4. Nc3 {[%clk 0:02:48.1]} 4... exd5 {[%clk 0:03:04]} 5. cxd5 {[%clk 0:02:50]}
5... d6 {[%clk 0:03:05.4]} 6. Nf3 {[%clk 0:02:49.2]} 6... g6 {[%clk 0:03:06.9]}
7. Nd2 {[%clk 0:02:50.3]} 7... Bg7 {[%clk 0:03:08.4]} 8. e4 {[%clk 0:02:50.4]}
8... O-O {[%clk 0:03:09.8]} 9. Be2 {[%clk 0:02:51.5]} 9... Re8 {[%clk
0:03:11.1]} 10. O-O {[%clk 0:02:52.5]} 10... a6 {[%clk 0:03:12.2]} 11. a4 {[%clk
0:02:53]} 11... Nbd7 {[%clk 0:03:13.8]} 12. Qc2 {[%clk 0:02:49.3]} 12... Qc7
{[%clk 0:02:59]} 13. Nc4 {[%clk 0:02:41.4]} 13... Ne5 {[%clk 0:02:54.4]} 14.
Nxe5 {[%clk 0:02:39.1]} 14... Rxe5 {[%clk 0:02:56.3]} 15. Bf4 {[%clk 0:02:39.4]}
15... Re8 {[%clk 0:02:56.4]} 16. h3 {[%clk 0:02:35.7]} 16... Rb8 {[%clk
0:02:53.7]} 17. Rab1 {[%clk 0:02:28.6]} 17... Bd7 {[%clk 0:02:45.5]} 18. Rfc1
{[%clk 0:02:28.2]} 18... b5 {[%clk 0:02:32]} 19. axb5 {[%clk 0:02:30.1]} 19...
axb5 {[%clk 0:02:33.2]} 20. b4 {[%clk 0:02:25.9]} 20... cxb4 {[%clk 0:02:11.2]}
21. Rxb4 {[%clk 0:02:27.8]} 21... Rbc8 {[%clk 0:02:03.9]} 22. Qb1 {[%clk
0:02:18.1]} 22... Nh5 {[%clk 0:01:43.3]} 23. Bd2 {[%clk 0:01:52.3]} 23... Rb8
{[%clk 0:00:29.3]} 24. Nxb5 {[%clk 0:01:39.9]} 24... Qd8 {[%clk 0:00:13.2]} 25.
Bxh5 {[%clk 0:01:15.1]} 25... Rxb5 {[%clk 0:00:04.6]} 26. Rxb5 {[%clk
0:01:13.3]} 26... Bxb5 {[%clk 0:00:05.1]} 27. Qxb5 {[%clk 0:01:15.2]} 27... gxh5
{[%clk 0:00:05.8]} 28. Qa6 {[%clk 0:00:56.9]} 1-0